[Event "Late-Titled-Tuesday-Blitz-March-05-2024"]
[Site "Chess.com"]
[Date "2024.03.05"]
[Round "2"]
[White "KerryStead"]
[Black "Abduzhaparov"]
[Result "0-1"]
[WhiteElo "2044"]
[BlackElo "2440"]
[TimeControl "180+1"]
[EndTime "14:18:47 PST"]
[Termination "Abduzhaparov won on time"]

1. d4 {[%clk 0:02:59.9]} 1... d6 {[%clk 0:03:00.9]} 2. e4 {[%clk 0:02:59.7]}
2... Nf6 {[%clk 0:03:00.9]} 3. Nc3 {[%clk 0:02:59.5]} 3... e5 {[%clk 0:03:01.5]}
4. dxe5 {[%clk 0:02:58.8]} 4... dxe5 {[%clk 0:03:02.4]} 5. Qxd8+ {[%clk
0:02:59.1]} 5... Kxd8 {[%clk 0:03:03.3]} 6. Bg5 {[%clk 0:02:58.3]} 6... Be6
{[%clk 0:03:03.3]} 7. f3 {[%clk 0:02:57.5]} 7... Nd7 {[%clk 0:03:03.2]} 8. O-O-O
{[%clk 0:02:57.3]} 8... Bd6 {[%clk 0:03:01.8]} 9. Nge2 {[%clk 0:02:54.3]} 9...
a6 {[%clk 0:03:01.3]} 10. Ng3 {[%clk 0:02:50.2]} 10... h6 {[%clk 0:03:01.1]} 11.
Be3 {[%clk 0:02:48]} 11... g6 {[%clk 0:02:53.2]} 12. Nd5 {[%clk 0:02:45.5]}
12... Bxd5 {[%clk 0:02:42.8]} 13. exd5 {[%clk 0:02:45.3]} 13... Bc5 {[%clk
0:02:41.5]} 14. Bxc5 {[%clk 0:02:31.6]} 14... Nxc5 {[%clk 0:02:42.4]} 15. b4
{[%clk 0:02:23.6]} 15... Na4 {[%clk 0:02:36.7]} 16. Rd3 {[%clk 0:02:14.7]} 16...
Ke7 {[%clk 0:02:31.5]} 17. c4 {[%clk 0:02:10.6]} 17... Rhd8 {[%clk 0:02:25.8]}
18. Ne4 {[%clk 0:02:10.3]} 18... b5 {[%clk 0:02:22.3]} 19. Nxf6 {[%clk
0:02:08.6]} 19... Kxf6 {[%clk 0:02:23.2]} 20. c5 {[%clk 0:02:07.4]} 20... a5
{[%clk 0:02:16.5]} 21. a3 {[%clk 0:02:06.5]} 21... axb4 {[%clk 0:02:15.9]} 22.
axb4 {[%clk 0:02:07.4]} 22... Ke7 {[%clk 0:02:02.9]} 23. Kc2 {[%clk 0:02:06.2]}
23... f6 {[%clk 0:02:02]} 24. Rd1 {[%clk 0:02:00.8]} 24... Rdb8 {[%clk
0:01:47.2]} 25. Kb3 {[%clk 0:01:54.7]} 25... f5 {[%clk 0:01:44.8]} 26. Bd3
{[%clk 0:01:52.4]} 26... Kf6 {[%clk 0:01:42.3]} 27. Bc2 {[%clk 0:01:49.4]} 27...
Rd8 {[%clk 0:01:39.9]} 28. Rd2 {[%clk 0:01:42.5]} 28... Rd7 {[%clk 0:01:35.8]}
29. Rhd1 {[%clk 0:01:42.1]} 29... Rad8 {[%clk 0:01:34]} 30. g3 {[%clk
0:01:29.6]} 30... h5 {[%clk 0:01:27.8]} 31. h3 {[%clk 0:01:29.1]} 31... g5
{[%clk 0:01:25.7]} 32. g4 {[%clk 0:01:28]} 32... e4 {[%clk 0:00:54.8]} 33. fxe4
{[%clk 0:01:11.8]} 33... hxg4 {[%clk 0:00:52.9]} 34. hxg4 {[%clk 0:01:10.2]}
34... f4 {[%clk 0:00:53.2]} 35. Bd3 {[%clk 0:00:56.7]} 35... c6 {[%clk
0:00:43.6]} 36. d6 {[%clk 0:00:55.2]} 36... Rh8 {[%clk 0:00:41]} 37. e5+ {[%clk
0:00:44.2]} 37... Kxe5 {[%clk 0:00:39.1]} 38. Bf5 {[%clk 0:00:44.2]} 38... Rh3+
{[%clk 0:00:37.2]} 39. Rd3 {[%clk 0:00:37.6]} 39... Rxd3+ {[%clk 0:00:30.7]} 40.
Rxd3 {[%clk 0:00:36.6]} 40... Rd8 {[%clk 0:00:31.1]} 41. d7 {[%clk 0:00:22]}
41... Kf6 {[%clk 0:00:26.7]} 42. Rd6+ {[%clk 0:00:21.1]} 42... Ke7 {[%clk
0:00:26.9]} 43. Rxc6 {[%clk 0:00:20]} 43... f3 {[%clk 0:00:26.5]} 44. Rh6 {[%clk
0:00:07.1]} 44... f2 {[%clk 0:00:22]} 45. Rh1 {[%clk 0:00:06.9]} 45... Rh8
{[%clk 0:00:22.4]} 46. Rf1 {[%clk 0:00:06.4]} 46... Rh3+ {[%clk 0:00:22.5]} 47.
Kc2 {[%clk 0:00:05]} 47... Rf3 {[%clk 0:00:19.9]} 48. Be4 {[%clk 0:00:03.7]}
48... Rf4 {[%clk 0:00:15.9]} 49. Bc6 {[%clk 0:00:01.9]} 49... Rxb4 {[%clk
0:00:12.4]} 50. Rxf2 {[%clk 0:00:01.5]} 50... Rc4+ {[%clk 0:00:10.1]} 51. Kd3
{[%clk 0:00:01.6]} 51... Nxc5+ {[%clk 0:00:08.6]} 0-1

[Event "Late-Titled-Tuesday-Blitz-March-05-2024"]
[Site "Chess.com"]
[Date "2024.03.05"]
[Round "2"]
[White "SnekkerAndersen"]
[Black "GrotBchess"]
[Result "1-0"]
[WhiteElo "2700"]
[BlackElo "2394"]
[TimeControl "180+1"]
[EndTime "14:18:50 PST"]
[Termination "SnekkerAndersen won by resignation"]

1. c4 {[%clk 0:02:57.8]} 1... e6 {[%clk 0:02:54.5]} 2. Nf3 {[%clk 0:02:57.3]}
2... d5 {[%clk 0:02:54]} 3. g3 {[%clk 0:02:57.7]} 3... c5 {[%clk 0:02:53.6]} 4.
Bg2 {[%clk 0:02:56.1]} 4... Nf6 {[%clk 0:02:53.7]} 5. O-O {[%clk 0:02:55.5]}
5... Nc6 {[%clk 0:02:53.9]} 6. cxd5 {[%clk 0:02:51.4]} 6... exd5 {[%clk
0:02:53.9]} 7. d4 {[%clk 0:02:52.1]} 7... cxd4 {[%clk 0:02:54]} 8. Nxd4 {[%clk
0:02:50.9]} 8... Bc5 {[%clk 0:02:53.9]} 9. Nxc6 {[%clk 0:02:21.2]} 9... bxc6
{[%clk 0:02:54.8]} 10. Qc2 {[%clk 0:02:21.2]} 10... Qb6 {[%clk 0:02:40.5]} 11.
Nc3 {[%clk 0:02:19.1]} 11... Be7 {[%clk 0:02:30.7]} 12. Be3 {[%clk 0:02:17.8]}
12... Qb7 {[%clk 0:02:28.2]} 13. Na4 {[%clk 0:00:46]} 13... O-O {[%clk
0:02:27.2]} 14. Bc5 {[%clk 0:00:44.3]} 14... Bxc5 {[%clk 0:02:17.3]} 15. Nxc5
{[%clk 0:00:45.2]} 15... Qb6 {[%clk 0:02:17.5]} 16. Rac1 {[%clk 0:00:45.1]}
16... Re8 {[%clk 0:02:15.1]} 17. Rfd1 {[%clk 0:00:45.2]} 17... Bg4 {[%clk
0:02:13.4]} 18. Rd2 {[%clk 0:00:43.4]} 18... h6 {[%clk 0:02:08.4]} 19. e4 {[%clk
0:00:40.3]} 19... dxe4 {[%clk 0:01:58.9]} 20. Nxe4 {[%clk 0:00:40.2]} 20... Nxe4
{[%clk 0:01:59.1]} 21. Bxe4 {[%clk 0:00:41.1]} 21... Rac8 {[%clk 0:01:59]} 22.
Bg2 {[%clk 0:00:36.9]} 22... Bh5 {[%clk 0:01:54.9]} 23. h3 {[%clk 0:00:35.7]}
23... Bg6 {[%clk 0:01:54.4]} 24. Qc5 {[%clk 0:00:35.9]} 24... Re1+ {[%clk
0:01:48.5]} 25. Kh2 {[%clk 0:00:28]} 25... Rxc1 {[%clk 0:01:48.2]} 26. Qxc1
{[%clk 0:00:28.9]} 26... c5 {[%clk 0:01:47.9]} 27. Qc3 {[%clk 0:00:23.7]} 27...
Qb4 {[%clk 0:01:46.9]} 28. Qe3 {[%clk 0:00:22.2]} 28... c4 {[%clk 0:01:43.1]}
29. a3 {[%clk 0:00:22.9]} 29... Qb3 {[%clk 0:01:36]} 30. Qxa7 {[%clk 0:00:20.3]}
30... Kh7 {[%clk 0:01:26.6]} 31. Qb7 {[%clk 0:00:20.4]} 31... Qxb7 {[%clk
0:01:19.2]} 32. Bxb7 {[%clk 0:00:21.3]} 32... Rb8 {[%clk 0:01:19.3]} 33. Bd5
{[%clk 0:00:21.1]} 33... Bd3 {[%clk 0:01:18.9]} 34. Bxf7 {[%clk 0:00:20.2]}
34... g5 {[%clk 0:01:13]} 35. h4 {[%clk 0:00:20]} 35... Kg7 {[%clk 0:01:12.6]}
36. Bd5 {[%clk 0:00:20.4]} 36... gxh4 {[%clk 0:01:12.2]} 37. gxh4 {[%clk
0:00:20.2]} 37... Kf6 {[%clk 0:01:12.7]} 38. f4 {[%clk 0:00:20.9]} 38... Kf5
{[%clk 0:01:12.3]} 39. Kg3 {[%clk 0:00:21.4]} 39... Rc8 {[%clk 0:01:07.7]} 40.
Kf3 {[%clk 0:00:21.2]} 40... Rc7 {[%clk 0:01:07.1]} 41. Ke3 {[%clk 0:00:19.8]}
41... Re7+ {[%clk 0:01:02.6]} 42. Kd4 {[%clk 0:00:20]} 42... Rc7 {[%clk
0:01:02.5]} 43. Rf2 {[%clk 0:00:18.8]} 43... Kg4 {[%clk 0:01:01.2]} 44. f5
{[%clk 0:00:18.3]} 44... Bxf5 {[%clk 0:01:00]} 45. Bxc4 {[%clk 0:00:18.3]} 45...
Rd7+ {[%clk 0:00:56.4]} 46. Kc3 {[%clk 0:00:18.7]} 46... Rc7 {[%clk 0:00:56.2]}
47. Rd2 {[%clk 0:00:18.3]} 47... Kxh4 {[%clk 0:00:54.2]} 48. Rd4+ {[%clk
0:00:18.4]} 48... Kg5 {[%clk 0:00:54]} 49. b4 {[%clk 0:00:19]} 49... h5 {[%clk
0:00:54.2]} 50. b5 {[%clk 0:00:19.7]} 50... h4 {[%clk 0:00:54.3]} 51. Kb4 {[%clk
0:00:17.9]} 51... h3 {[%clk 0:00:53.5]} 52. b6 {[%clk 0:00:17.4]} 52... Rb7
{[%clk 0:00:53.2]} 53. Rd6 {[%clk 0:00:18]} 53... Be4 {[%clk 0:00:42.4]} 54. Bd5
{[%clk 0:00:17.8]} 54... Bxd5 {[%clk 0:00:27.4]} 55. Rxd5+ {[%clk 0:00:17.7]}
55... Kg4 {[%clk 0:00:28]} 56. Kb5 {[%clk 0:00:18.2]} 56... h2 {[%clk
0:00:27.8]} 57. Rd1 {[%clk 0:00:17.7]} 57... Kg3 {[%clk 0:00:26.1]} 58. a4
{[%clk 0:00:17.9]} 58... Rh7 {[%clk 0:00:25.7]} 59. a5 {[%clk 0:00:16.9]} 59...
Rh5+ {[%clk 0:00:25.6]} 60. Ka6 {[%clk 0:00:17]} 60... Rd5 {[%clk 0:00:23]} 61.
Rb1 {[%clk 0:00:14.6]} 61... Kg2 {[%clk 0:00:20.9]} 62. Rb2+ {[%clk 0:00:12.5]}
62... Kg1 {[%clk 0:00:20.2]} 63. Rxh2 {[%clk 0:00:13.4]} 63... Kxh2 {[%clk
0:00:20.7]} 64. b7 {[%clk 0:00:13.3]} 64... Rd6+ {[%clk 0:00:21.4]} 65. Ka7
{[%clk 0:00:13.5]} 65... Rd7 {[%clk 0:00:21.2]} 66. a6 {[%clk 0:00:14]} 66...
Kg3 {[%clk 0:00:20.6]} 67. Ka8 {[%clk 0:00:14.4]} 67... Rd6 {[%clk 0:00:17.9]}
68. a7 {[%clk 0:00:14.1]} 68... Rd8+ {[%clk 0:00:16.5]} 69. b8=Q+ {[%clk
0:00:15]} 69... Rxb8+ {[%clk 0:00:16.9]} 1-0

[Event "Late-Titled-Tuesday-Blitz-March-05-2024"]
[Site "Chess.com"]
[Date "2024.03.05"]
[Round "2"]
[White "mightysmasher"]
[Black "Yaacovn"]
[Result "0-1"]
[WhiteElo "2583"]
[BlackElo "2863"]
[TimeControl "180+1"]
[EndTime "14:19:05 PST"]
[Termination "Yaacovn won by checkmate"]

1. e4 {[%clk 0:03:00.9]} 1... c6 {[%clk 0:02:46.3]} 2. d4 {[%clk 0:03:00.7]}
2... d5 {[%clk 0:02:44.7]} 3. Nd2 {[%clk 0:03:00.9]} 3... dxe4 {[%clk
0:02:44.4]} 4. Nxe4 {[%clk 0:03:01.8]} 4... Nf6 {[%clk 0:02:44.3]} 5. Nxf6+
{[%clk 0:03:02.1]} 5... gxf6 {[%clk 0:02:44.1]} 6. c3 {[%clk 0:03:02.6]} 6...
Qd5 {[%clk 0:02:36.4]} 7. Nf3 {[%clk 0:03:02.4]} 7... Bg4 {[%clk 0:02:36.5]} 8.
Be2 {[%clk 0:03:02.4]} 8... Nd7 {[%clk 0:02:33.6]} 9. h3 {[%clk 0:03:01.7]} 9...
Bh5 {[%clk 0:02:33.5]} 10. Be3 {[%clk 0:03:01.7]} 10... e6 {[%clk 0:02:24]} 11.
Qb3 {[%clk 0:02:58.3]} 11... Nb6 {[%clk 0:02:24]} 12. O-O-O {[%clk 0:02:45.6]}
12... Rg8 {[%clk 0:02:23.3]} 13. g4 {[%clk 0:02:40]} 13... Bg6 {[%clk
0:02:22.9]} 14. Nd2 {[%clk 0:02:35.5]} 14... O-O-O {[%clk 0:02:19.2]} 15. a3
{[%clk 0:01:42.9]} 15... c5 {[%clk 0:02:09.6]} 16. Nc4 {[%clk 0:01:13.5]} 16...
Nxc4 {[%clk 0:01:40.6]} 17. Bxc4 {[%clk 0:01:12.1]} 17... Qe4 {[%clk 0:01:35.5]}
18. Bd3 {[%clk 0:01:08.5]} 18... Qc6 {[%clk 0:01:35.2]} 19. Bb5 {[%clk
0:00:55.4]} 19... Qb6 {[%clk 0:01:29.1]} 20. Bc4 {[%clk 0:00:49.1]} 20... Qxb3
{[%clk 0:01:25.5]} 21. Bxb3 {[%clk 0:00:50]} 21... b6 {[%clk 0:01:20.1]} 22. d5
{[%clk 0:00:47.7]} 22... e5 {[%clk 0:01:08.3]} 23. f4 {[%clk 0:00:41.9]} 23...
Be4 {[%clk 0:01:05.7]} 24. Rhe1 {[%clk 0:00:37.3]} 24... Bg2 {[%clk 0:01:02.7]}
25. fxe5 {[%clk 0:00:28.8]} 25... fxe5 {[%clk 0:00:59.4]} 26. d6 {[%clk
0:00:20.6]} 26... Bxd6 {[%clk 0:00:49.9]} 27. Bxf7 {[%clk 0:00:20.2]} 27... Rgf8
{[%clk 0:00:48.6]} 28. Be6+ {[%clk 0:00:20.4]} 28... Kc7 {[%clk 0:00:47.9]} 29.
g5 {[%clk 0:00:20.8]} 29... Bf3 {[%clk 0:00:44.4]} 30. Rd2 {[%clk 0:00:20.5]}
30... e4 {[%clk 0:00:43.1]} 31. b4 {[%clk 0:00:16.1]} 31... Be5 {[%clk 0:00:42]}
32. Kc2 {[%clk 0:00:14.6]} 32... Rxd2+ {[%clk 0:00:34.1]} 33. Bxd2 {[%clk
0:00:14.7]} 33... Bg3 {[%clk 0:00:34.6]} 34. Rf1 {[%clk 0:00:13.2]} 34... e3
{[%clk 0:00:30.7]} 35. Rg1 {[%clk 0:00:07.5]} 35... exd2 {[%clk 0:00:27.1]} 36.
Kxd2 {[%clk 0:00:07.4]} 36... Bf4+ {[%clk 0:00:25.1]} 37. Kc2 {[%clk 0:00:07.4]}
37... Be4+ {[%clk 0:00:25]} 38. Kb2 {[%clk 0:00:07.4]} 38... Be3 {[%clk
0:00:23.6]} 39. Re1 {[%clk 0:00:07.5]} 39... Rf2+ {[%clk 0:00:21.2]} 40. Ka1
{[%clk 0:00:07]} 40... Rf3 {[%clk 0:00:18.7]} 41. Bg4 {[%clk 0:00:07.4]} 41...
Rg3 {[%clk 0:00:18.8]} 42. bxc5 {[%clk 0:00:07]} 42... bxc5 {[%clk 0:00:17.5]}
43. Kb2 {[%clk 0:00:06.1]} 43... Bg6 {[%clk 0:00:17]} 44. Kb3 {[%clk 0:00:05.9]}
44... Bf7+ {[%clk 0:00:17.3]} 45. Ka4 {[%clk 0:00:05.9]} 45... Be8+ {[%clk
0:00:17.6]} 46. Kb3 {[%clk 0:00:05.7]} 46... Bc6 {[%clk 0:00:17.6]} 47. Rf1
{[%clk 0:00:05]} 47... Bxg5 {[%clk 0:00:17.6]} 48. Rf7+ {[%clk 0:00:04.5]} 48...
Kb6 {[%clk 0:00:17.9]} 49. Rxh7 {[%clk 0:00:04.8]} 49... Bd2 {[%clk 0:00:18.5]}
50. Kc2 {[%clk 0:00:04.2]} 50... Bxc3 {[%clk 0:00:18.5]} 51. Kd1 {[%clk
0:00:04]} 51... Bd4 {[%clk 0:00:18.7]} 52. Ke2 {[%clk 0:00:03.2]} 52... Re3+
{[%clk 0:00:18.3]} 53. Kd2 {[%clk 0:00:03.1]} 53... Re5 {[%clk 0:00:19.1]} 54.
Rh6 {[%clk 0:00:03.4]} 54... Be3+ {[%clk 0:00:19.4]} 55. Kc2 {[%clk 0:00:02.9]}
55... Bxh6 {[%clk 0:00:20.3]} 56. h4 {[%clk 0:00:03.3]} 56... Re4 {[%clk
0:00:18.5]} 57. h5 {[%clk 0:00:04.2]} 57... Rxg4 {[%clk 0:00:18.6]} 58. Kc3
{[%clk 0:00:05.1]} 58... Rg5 {[%clk 0:00:19]} 59. a4 {[%clk 0:00:06]} 59... Rxh5
{[%clk 0:00:19]} 60. a5+ {[%clk 0:00:06.9]} 60... Kb5 {[%clk 0:00:19.4]} 61. a6
{[%clk 0:00:06.7]} 61... Kxa6 {[%clk 0:00:18.9]} 62. Kc4 {[%clk 0:00:06.9]}
62... Kb6 {[%clk 0:00:19.6]} 63. Kc3 {[%clk 0:00:07]} 63... Rg5 {[%clk
0:00:20.1]} 64. Kc4 {[%clk 0:00:07.9]} 64... Bf8 {[%clk 0:00:20.5]} 65. Kc3
{[%clk 0:00:08.7]} 65... Bd6 {[%clk 0:00:21.1]} 66. Kc4 {[%clk 0:00:09.6]} 66...
Rg4+ {[%clk 0:00:20.9]} 67. Kc3 {[%clk 0:00:10.5]} 67... Kb5 {[%clk 0:00:21.3]}
68. Kb3 {[%clk 0:00:10.7]} 68... Rg3+ {[%clk 0:00:21.6]} 69. Kc2 {[%clk
0:00:10.9]} 69... Kc4 {[%clk 0:00:21.5]} 70. Kd2 {[%clk 0:00:11.3]} 70... Rb3
{[%clk 0:00:21.5]} 71. Kc2 {[%clk 0:00:11.5]} 71... Bc7 {[%clk 0:00:21.9]} 72.
Kd2 {[%clk 0:00:11.9]} 72... Bb6 {[%clk 0:00:22.3]} 73. Kc2 {[%clk 0:00:12.4]}
73... a5 {[%clk 0:00:22.8]} 74. Kd2 {[%clk 0:00:12.8]} 74... a4 {[%clk
0:00:23.4]} 75. Ke2 {[%clk 0:00:13.2]} 75... a3 {[%clk 0:00:24]} 76. Kd2 {[%clk
0:00:14.1]} 76... a2 {[%clk 0:00:24.6]} 77. Ke2 {[%clk 0:00:15]} 77... a1=Q
{[%clk 0:00:25.2]} 78. Kf2 {[%clk 0:00:15.4]} 78... Qa2+ {[%clk 0:00:26.1]} 79.
Ke1 {[%clk 0:00:15.3]} 79... Rb1# {[%clk 0:00:27]} 0-1

[Event "Late-Titled-Tuesday-Blitz-March-05-2024"]
[Site "Chess.com"]
[Date "2024.03.05"]
[Round "2"]
[White "ShahMatKanal"]
[Black "kids2010"]
[Result "0-1"]
[WhiteElo "2508"]
[BlackElo "2803"]
[TimeControl "180+1"]
[EndTime "14:19:07 PST"]
[Termination "kids2010 won on time"]

1. d4 {[%clk 0:03:00.9]} 1... d5 {[%clk 0:02:59.5]} 2. Nf3 {[%clk 0:02:59]} 2...
Nf6 {[%clk 0:02:59.1]} 3. Bf4 {[%clk 0:02:55.2]} 3... e6 {[%clk 0:02:56.8]} 4.
e3 {[%clk 0:02:53.9]} 4... c5 {[%clk 0:02:56.9]} 5. c3 {[%clk 0:02:53.4]} 5...
Nc6 {[%clk 0:02:56.6]} 6. Nbd2 {[%clk 0:02:51.3]} 6... cxd4 {[%clk 0:02:56.7]}
7. exd4 {[%clk 0:02:49.9]} 7... Nh5 {[%clk 0:02:56.9]} 8. Be5 {[%clk 0:02:25.8]}
8... Nxe5 {[%clk 0:02:50.3]} 9. Nxe5 {[%clk 0:02:26.7]} 9... Nf6 {[%clk
0:02:44.3]} 10. Bb5+ {[%clk 0:02:24.1]} 10... Bd7 {[%clk 0:02:44.1]} 11. Qa4
{[%clk 0:02:00.5]} 11... Bd6 {[%clk 0:02:38.6]} 12. Ndf3 {[%clk 0:01:54.8]}
12... a6 {[%clk 0:02:38.6]} 13. Bxd7+ {[%clk 0:01:52.2]} 13... Nxd7 {[%clk
0:02:39.5]} 14. Nxd7 {[%clk 0:01:41.9]} 14... Qxd7 {[%clk 0:02:38.8]} 15. Qxd7+
{[%clk 0:01:42.8]} 15... Kxd7 {[%clk 0:02:39.5]} 16. Kd2 {[%clk 0:01:40.4]}
16... b5 {[%clk 0:02:39.1]} 17. a3 {[%clk 0:01:40.1]} 17... f6 {[%clk
0:02:37.5]} 18. Rhe1 {[%clk 0:01:38.3]} 18... a5 {[%clk 0:02:37.7]} 19. Re2
{[%clk 0:01:13.8]} 19... b4 {[%clk 0:02:36.9]} 20. axb4 {[%clk 0:01:14.7]} 20...
axb4 {[%clk 0:02:37.2]} 21. Rae1 {[%clk 0:01:06]} 21... Ra2 {[%clk 0:02:21.1]}
22. Kd3 {[%clk 0:00:55.9]} 22... Rc8 {[%clk 0:02:19]} 23. Rc2 {[%clk 0:00:33.5]}
23... g5 {[%clk 0:01:46]} 24. h3 {[%clk 0:00:30.3]} 24... h5 {[%clk 0:01:42.9]}
25. Nd2 {[%clk 0:00:23.7]} 25... Raa8 {[%clk 0:01:29.8]} 26. c4 {[%clk
0:00:19.7]} 26... dxc4+ {[%clk 0:01:27.3]} 27. Nxc4 {[%clk 0:00:20]} 27... Rcb8
{[%clk 0:01:07.3]} 28. Nxd6 {[%clk 0:00:18.2]} 28... Kxd6 {[%clk 0:01:08.2]} 29.
Rec1 {[%clk 0:00:18.5]} 29... Rb7 {[%clk 0:00:55.2]} 30. Rc6+ {[%clk 0:00:18.6]}
30... Kd7 {[%clk 0:00:54.7]} 31. R6c5 {[%clk 0:00:16.9]} 31... Ra2 {[%clk
0:00:52.5]} 32. R1c2 {[%clk 0:00:16.7]} 32... b3 {[%clk 0:00:51.4]} 33. Re2
{[%clk 0:00:16.5]} 33... Ra1 {[%clk 0:00:50.9]} 34. Kd2 {[%clk 0:00:13.6]} 34...
Rb4 {[%clk 0:00:49.9]} 35. Kc3 {[%clk 0:00:12.7]} 35... Rb7 {[%clk 0:00:50]} 36.
Kd2 {[%clk 0:00:12.4]} 36... Rb4 {[%clk 0:00:50.6]} 37. Kc3 {[%clk 0:00:12.7]}
37... Rb6 {[%clk 0:00:51.5]} 38. Kd2 {[%clk 0:00:12.8]} 38... Ra4 {[%clk
0:00:51.8]} 39. Ke3 {[%clk 0:00:10.8]} 39... Rd6 {[%clk 0:00:51]} 40. Rd2 {[%clk
0:00:10.9]} 40... f5 {[%clk 0:00:49.1]} 41. g3 {[%clk 0:00:11.2]} 41... Rb4
{[%clk 0:00:44.9]} 42. Ra5 {[%clk 0:00:10.3]} 42... Ke7 {[%clk 0:00:44.5]} 43.
Ra7+ {[%clk 0:00:09.5]} 43... Kf6 {[%clk 0:00:44.8]} 44. Ra5 {[%clk 0:00:10.1]}
44... Rc6 {[%clk 0:00:34.3]} 45. f4 {[%clk 0:00:09.9]} 45... gxf4+ {[%clk
0:00:28.2]} 46. gxf4 {[%clk 0:00:10.8]} 46... Rc2 {[%clk 0:00:28.6]} 47. Rc5
{[%clk 0:00:07.5]} 47... Rxd2 {[%clk 0:00:27.4]} 48. Kxd2 {[%clk 0:00:08.3]}
48... Rxd4+ {[%clk 0:00:27.9]} 49. Ke3 {[%clk 0:00:08.7]} 49... Re4+ {[%clk
0:00:28.1]} 50. Kf3 {[%clk 0:00:09.1]} 50... Rb4 {[%clk 0:00:26.2]} 51. Rc8
{[%clk 0:00:08.4]} 51... h4 {[%clk 0:00:26]} 52. Rf8+ {[%clk 0:00:08]} 52... Ke7
{[%clk 0:00:26.3]} 53. Rh8 {[%clk 0:00:07.2]} 53... Rd4 {[%clk 0:00:26.7]} 54.
Rb8 {[%clk 0:00:05.5]} 54... Rd3+ {[%clk 0:00:26.3]} 55. Kg2 {[%clk 0:00:05.8]}
55... Rd2+ {[%clk 0:00:25.2]} 56. Kf3 {[%clk 0:00:06]} 56... Rxb2 {[%clk
0:00:26.1]} 57. Rb7+ {[%clk 0:00:04.4]} 57... Kf6 {[%clk 0:00:26]} 58. Rb8
{[%clk 0:00:03.5]} 58... Rb1 {[%clk 0:00:26]} 59. Kg2 {[%clk 0:00:03.4]} 59...
b2 {[%clk 0:00:25.8]} 60. Rb7 {[%clk 0:00:03.4]} 60... e5 {[%clk 0:00:24.3]} 61.
Rb6+ {[%clk 0:00:02.8]} 61... Ke7 {[%clk 0:00:24.6]} 62. fxe5 {[%clk 0:00:03.7]}
62... f4 {[%clk 0:00:25.3]} 63. Kh2 {[%clk 0:00:01.8]} 63... f3 {[%clk
0:00:20.7]} 64. Rb7+ {[%clk 0:00:01.9]} 64... Ke6 {[%clk 0:00:16.5]} 65. Rb6+
{[%clk 0:00:02]} 65... Kd5 {[%clk 0:00:16.1]} 66. Rd6+ {[%clk 0:00:01.1]} 66...
Ke4 {[%clk 0:00:15.3]} 67. Rf6 {[%clk 0:00:01.3]} 67... Rh1+ {[%clk 0:00:14.5]}
0-1